fUST/lending_fUST_20240420
["ID","MTS","AMOUNT","RATE_DAILY","PERIOD"]
[322957146,1713545439266,-164.100073,0.00049315,2]
[322957147,1713545439279,-157.44846143,0.0004938,30]
[322957148,1713545439293,-150.90945433,0.00049537,2]
[322957149,1713545439306,-595.982,0.000499,9]
[322957151,1713545439320,-1000.0,0.000499,120]
[322957153,1713545439329,-1984.62273912,0.000499,2]
[322957155,1713545439339,-150.53610885,0.00049951,30]
[322957158,1713545439350,-249.74922974,0.00049996,4]
[322957159,1713545439363,-211.66611839,0.00049996,4]
[322957162,1713545439375,-154.87609912,0.00049996,4]
[322957164,1713545439386,-521.0,0.00049996,4]
[322957165,1713545439397,-157.5764134,0.00049996,4]
[322957166,1713545439409,-364.51738205,0.00049996,30]
[322957167,1713545439422,-193.30620689,0.00049997,4]
[322957168,1713545439432,-279.51924945,0.00049998,4]
[322957169,1713545439442,-24703.71495823,0.00049998,4]
[322957171,1713545439453,-352.02477257,0.00049998,4]
[322957173,1713545439464,-2584.00603942,0.00049998,4]
[322957175,1713545439475,-2690.04912615,0.00049998,4]
[322957176,1713545439486,-992.96608266,0.00049999,4]
[322957177,1713545439497,-156.53252326,0.00049999,120]
[322957178,1713545439508,-10570.90534707,0.0005,61]
[322957179,1713545439522,-256.33470642,0.0005,120]
[322957180,1713545439533,-151.0,0.0005,120]
[322957181,1713545439544,-9499.86,0.0005,60]
[322957183,1713545439557,-8536.05857705,0.0005,120]
[322957184,1713545439571,-250.18487226,0.0005,10]
[322957185,1713545439581,-1064.32522206,0.0005,120]
[322957200,1713545440097,-14897.92254335,0.0005,120]
[322957201,1713545440227,-6618.10440259,0.0005,120]
[322957202,1713545440248,-14811.54555749,0.0005,120]
[322957666,1713545454738,2516.56,0.000261,10]
[322957667,1713545518005,408.84027001,0.0002416,2]
[322957679,1713546286894,5000.0,0.0002303,2]
[322957687,1713546446177,-2126.51224034,0.00023019,2]
[322957688,1713546446199,-1310.7097611,0.0002302,2]
[322957689,1713546446220,-408.57291394,0.0002302,2]
[322957690,1713546446241,-329.39846217,0.0002302,2]
[322957691,1713546446263,-154.93802479,0.0002302,2]
[322957692,1713546446291,-300.0,0.00023021,2]
[322957693,1713546446312,-300.0,0.00023021,2]
[322957694,1713546446333,-5241.86859766,0.00023021,2]
[322957695,1713546486592,652.82,0.000261,30]
[322957783,1713546632195,-977.06231715,0.00023011,2]
[322957784,1713546632205,-408.57291394,0.00023012,2]
[322957785,1713546632215,-469.26939572,0.00023013,2]
[322957786,1713546632224,-154.93802479,0.00023015,2]
[322957787,1713546632233,-43839.2931262,0.00023017,2]
[322957799,1713546638274,-272.53477675,0.00023016,2]
[322957800,1713546638283,-326.1505568,0.00023016,2]
[322957801,1713546638294,-173.8494432,0.00023016,2]
[322957802,1713546638303,-500.0,0.00023016,2]
[322957803,1713546638312,-500.0,0.00023016,2]
[322957804,1713546638321,-500.0,0.00023016,2]
[322957805,1713546638332,-500.0,0.00023016,2]
[322957806,1713546638345,-507.38172316,0.00023016,2]
[322957807,1713546638354,-500.0,0.00023016,2]
[322957808,1713546638364,-595.52802048,0.00023016,2]
[322957809,1713546638374,-163.51556488,0.00023016,2]
[322957810,1713546638384,-28671.12416347,0.00023017,2]
[322957811,1713546638393,-463.3217532,0.00023017,2]
[322957812,1713546638403,-361.69196649,0.00023017,2]
[322957813,1713546638412,-153.60574541,0.00023017,2]
[322957814,1713546638421,-300.0,0.00023018,2]
[322957815,1713546638437,-59112.64828846,0.00023018,2]
[322957816,1713546638446,-928.17457008,0.00023021,2]
[322957817,1713546638455,-1475.45659712,0.00023021,2]
[322957818,1713546638464,-191.06850295,0.00023021,2]
[322957819,1713546638474,-356.94255538,0.00023021,2]
[322957820,1713546638483,-7527.00133377,0.00023022,2]
[322957821,1713546638493,-19900.0,0.0002303,2]
[322957822,1713546638502,-629.20694975,0.00024001,2]
[322957823,1713546638512,-1218.02095986,0.00024042,2]
[322957824,1713546638522,-513.35127972,0.0002405,2]
[322957825,1713546638532,-420.0,0.0002532,2]
[322957826,1713546638542,-10107.37936223,0.000261,2]
[322957827,1713546638551,-525.32722293,0.00026999,2]
[322957828,1713546638561,-8510.41889157,0.00027,2]
[322957829,1713546638570,-500.0,0.00027397,2]
[322957830,1713546638579,-500.0,0.00027397,2]
[322957831,1713546638588,-500.0,0.00027397,2]
[322957832,1713546638597,-225.16759599,0.00027397,2]
[322957833,1713546638608,-176.810509,0.00027397,2]
[322957834,1713546638617,-166.055162,0.00027397,2]
[322957835,1713546638627,-166.6666667,0.00027397,2]
[322957836,1713546638635,-197.02367006,0.000274,2]
[322957837,1713546638644,-755.80206996,0.000274,2]
[322957838,1713546638653,-150.92453773,0.0002774,7]
[322957839,1713546638663,-587.0,0.00027852,2]
[322957840,1713546638672,-150.92453773,0.00028307,4]
[322957841,1713546638687,-797.27,0.00028874,3]
[322957842,1713546638696,-150.92453773,0.00028884,2]
[322957843,1713546638705,-1377.69,0.0002999,3]
[322957844,1713546638715,-688.59429255,0.00029997,2]
[322957845,1713546638725,-203.60236123,0.00029997,2]
[322957846,1713546638734,-309.53569955,0.00029997,2]
[322957847,1713546638744,-232.50525342,0.00029997,2]
[322957848,1713546638753,-474.19997224,0.00029997,2]
[322957849,1713546638762,-2096.10061417,0.00029997,2]
[322957850,1713546638771,-467.87279548,0.00029997,2]
[322957851,1713546638780,-156.97461354,0.00029997,2]
[322957852,1713546638789,-205.75607667,0.00029997,2]
[322957853,1713546638799,-659.43850789,0.00029998,2]
[322957854,1713546638808,-209.9294363,0.00029998,30]
[322957855,1713546638817,-154.95351395,0.00029998,2]
[322957856,1713546638826,-1352.3101937,0.0003,4]
[322957857,1713546638835,-930.07258122,0.0003,4]
[322957858,1713546638844,-154.86062444,0.0003,2]
[322957859,1713546638855,-31321.06831637,0.0003,2]
[322957860,1713546638864,-4848.21770199,0.0003,5]
[322957861,1713546638874,-192.696713,0.00030137,2]
[322957862,1713546638884,-2574.2339,0.00030567,30]
[322957863,1713546638893,-823.0,0.00030637,2]
[322957864,1713546638903,-450.94545456,0.00030813,30]
[322957865,1713546638912,-350.42643964,0.00031,4]
[322957866,1713546638921,-221.76571967,0.00031996,2]
[322957867,1713546638934,-191.2801184,0.00032,4]
[322957868,1713546638944,-150.92453773,0.00032094,2]
[322957869,1713546638953,-250.36569715,0.00032094,2]
[322957870,1713546638963,-5366.2842,0.00032567,30]
[322957871,1713546638972,-301.84907546,0.00032633,4]
[322957872,1713546638981,-1587.7606295,0.00033,4]
[322957873,1713546638991,-176.810509,0.00033165,2]
[322957874,1713546639001,-603.69815092,0.00033181,7]
[322957875,1713546639010,-274.06505324,0.00033458,7]
[322957876,1713546639019,-163.59252819,0.00033604,7]
[322957877,1713546639028,-153.54682459,0.00033701,7]
[322957878,1713546639038,-1152.0,0.00033701,2]
[322957879,1713546639047,-166.91046477,0.00033739,4]
[322957880,1713546639057,-163.59252819,0.00033916,7]
[322957881,1713546639071,-465.76981599,0.00034,4]
[322957882,1713546639080,-274.06505324,0.00034004,7]
[322957883,1713546639090,-1207.39630185,0.00034021,30]
[322957884,1713546639100,-41209.55178723,0.00034107,3]
[322957885,1713546639111,-13585.80862854,0.00034207,5]
[322957886,1713546639124,-20736.10213498,0.00034207,14]
[322957887,1713546639134,-1551.34614349,0.00034207,2]
[322957888,1713546639144,-85494.26080123,0.00034207,60]
[322957889,1713546639153,-21721.744019,0.00034207,30]
[322957908,1713546640151,-784.47571,0.00034207,30]
[322957973,1713546643245,-8360.93757258,0.00034207,30]
[322957974,1713546643255,-202.21989934,0.00034207,30]
[322957975,1713546643265,-154.87609812,0.00034207,2]
[322957976,1713546643274,-1455.97422049,0.00034207,30]
[322957977,1713546643385,-4859.84299656,0.00034207,30]
[322957978,1713546643397,-642.5,0.00034207,30]
[322958030,1713546868244,-211.91364755,0.00022915,2]
[322958031,1713546868272,-188.68634533,0.00022916,2]
[322958032,1713546868300,-1591.15972999,0.00022919,2]
[322958033,1713546966592,209.9294363,0.00029362,30]
[322958086,1713547364486,189.845099,0.00030137,120]
[322958139,1713547523867,360.278871,0.00030137,30]
[322958177,1713547832288,-157.1408738,0.00025254,2]
[322958178,1713547832300,-1576.32789394,0.00025254,2]
[322958179,1713547832312,-204.00475123,0.00025255,2]
[322958181,1713547832324,-167.803675,0.00025256,2]
[322958184,1713547832335,-688.90875736,0.0002566,2]
[322958186,1713547832348,-667.99263696,0.0002566,2]
[322958188,1713547832359,-200.0,0.00025662,2]
[322958190,1713547832370,-249.50817853,0.0002575,2]
[322958191,1713547832380,-300.0,0.00025857,2]
[322958192,1713547832391,-711.62152,0.00025858,2]
[322958193,1713547832402,-168.8346346,0.00026098,2]
[322958194,1713547832414,-1992.29736222,0.000261,2]
[322958195,1713547832429,-8510.41889157,0.00027,2]
[322958196,1713547832440,-937.81823729,0.00027181,2]
[322958197,1713547832453,-500.0,0.00027182,2]
[322958198,1713547832464,-500.0,0.00027182,2]
[322958199,1713547832475,-500.0,0.00027182,2]
[322958200,1713547832487,-178.00211012,0.00027182,2]
[322958201,1713547832498,-500.0,0.00027182,2]
[322958202,1713547832509,-177.28089116,0.00027182,2]
[322958203,1713547832520,-503.93548158,0.00027182,2]
[322958204,1713547832531,-24900.0,0.00027183,2]
[322958205,1713547832541,-498.60144905,0.00027297,3]
[322958206,1713547832552,-159.63336,0.00027397,2]
[322958207,1713547832563,-158.070897,0.00027397,2]
[322958208,1713547832574,-166.666666,0.00027397,2]
[322958209,1713547832585,-1000.0,0.00027397,2]
[322958210,1713547832596,-168.003273,0.00027397,2]
[322958211,1713547832608,-420.0,0.00028443,2]
[322958212,1713547832619,-755.80206996,0.00029362,2]
[322958213,1713547832630,-205.75607667,0.00029362,2]
[322958214,1713547832641,-154.95351395,0.00029362,2]
[322958215,1713547832653,-467.87279548,0.00029362,2]
[322958216,1713547832664,-2096.10061417,0.00029362,2]
[322958217,1713547832675,-309.53569955,0.00029362,2]
[322958218,1713547832686,-232.50525342,0.00029362,2]
[322958219,1713547832696,-474.19997224,0.00029362,2]
[322958220,1713547832707,-211.58360867,0.00029363,2]
[322958221,1713547832718,-150.92453773,0.0002966,7]
[322958222,1713547832729,-525.32722293,0.00029996,10]
[322958223,1713547832740,-930.07258122,0.0003,4]
[322958224,1713547832751,-189.845099,0.00030137,2]
[322958225,1713547832762,-154.93802479,0.00030137,2]
[322958226,1713547832773,-150.92453773,0.00030266,4]
[322958227,1713547832785,-2574.2339,0.00030562,30]
[322958228,1713547832796,-166.666666,0.00030603,2]
[322958229,1713547832807,-450.94545456,0.00030692,30]
[322958230,1713547832819,-1352.3101937,0.00030786,4]
[322958231,1713547832830,-150.92453773,0.00030883,2]
[322958232,1713547832841,-350.42643964,0.00031,4]
[322958233,1713547832857,-6239.58078714,0.00031,4]
[322958234,1713547832866,-587.0,0.00031288,2]
[322958235,1713547832876,-191.2801184,0.00032,4]
[322958236,1713547833018,-5366.2842,0.00032562,30]
[322958237,1713547833041,-376.08802368,0.0003294,2]
[322958238,1713547833052,-274.06505324,0.0003304,7]
[322958239,1713547833061,-168.003273,0.00033165,2]
[322958240,1713547833071,-153.54682459,0.00033299,7]
[322958242,1713547833080,-376.08802365,0.00033405,2]
[322958243,1713547833089,-274.06505324,0.00033601,7]
[322958244,1713547833105,-376.08802365,0.0003387,2]
[322958245,1713547833114,-274.06505324,0.00033998,7]
[322958246,1713547833123,-465.76981599,0.00034,4]
[322958247,1713547833133,-1312.59502038,0.00034,3]
[322958248,1713547833142,-847.43994156,0.00034,2]
[322958250,1713547833152,-664.39,0.00034094,3]
[322958252,1713547833161,-1266.95,0.00034094,3]
[322958254,1713547833170,-221.76571967,0.00034103,2]
[322958256,1713547833179,-495.98580602,0.00034103,7]
[322958258,1713547833187,-500.0,0.00034103,7]
[322958260,1713547833196,-477.22357235,0.00034103,7]
[322958262,1713547833205,-500.0,0.00034103,7]
[322958264,1713547833214,-500.0,0.00034103,7]
[322958266,1713547833223,-500.0,0.00034103,7]
[322958268,1713547833233,-500.0,0.00034103,7]
[322958270,1713547833243,-500.0,0.00034103,7]
[322958272,1713547833254,-500.0,0.00034103,7]
[322958274,1713547833263,-500.0,0.00034103,7]
[322958276,1713547833272,-500.0,0.00034103,7]
[322958278,1713547833280,-500.0,0.00034103,7]
[322958280,1713547833290,-313.92951684,0.00034103,7]
[322958282,1713547833299,-448.80799388,0.00034103,7]
[322958284,1713547833307,-500.0,0.00034103,7]
[322958285,1713547833317,-500.0,0.00034103,7]
[322958287,1713547833327,-500.0,0.00034103,7]
[322958290,1713547833338,-540.3847804,0.00034103,7]
[322958292,1713547833350,-500.0,0.00034103,7]
[322958293,1713547833360,-500.0,0.00034103,7]
[322958296,1713547833369,-525.74547902,0.00034104,4]
[322958298,1713547833378,-400.0,0.00034104,2]
[322958299,1713547833387,-521.03498526,0.00034104,4]
[322958302,1713547833398,-193.47447521,0.00034104,4]
[322958304,1713547833408,-241.20667916,0.00034104,4]
[322958305,1713547833422,-354.39971412,0.00034104,4]
[322958307,1713547833431,-158.857458,0.00034104,4]
[322958309,1713547833441,-277.60171443,0.00034104,4]
[322958312,1713547833451,-332.07459253,0.00034104,4]
[322958314,1713547833460,-7861.29104078,0.00034104,4]
[322958343,1713547838281,-1055.8,0.00034094,3]
[322958344,1713547838290,-18818.27109146,0.00034104,4]
[322958345,1713547838299,-7858.55367278,0.00034106,2]
[322958346,1713547838309,-63109.39507531,0.00034106,4]
[322958347,1713547838318,-150.0,0.000342,2]
[322958348,1713547838328,-19887.46208658,0.00034202,30]
[322958349,1713547838337,-21010.0506412,0.00034202,10]
[322958351,1713547838346,-6176.81006509,0.00034202,120]
[322958353,1713547838357,-34728.83194088,0.00034202,60]
[322958355,1713547838366,-28315.18243845,0.00034206,4]
[322958356,1713547838375,-407.74476436,0.00034206,4]
[322958358,1713547838384,-1178.74269245,0.00034206,4]
[322958359,1713547838393,-1587.7606295,0.00034207,4]
[322958360,1713547838402,-4848.21770199,0.00034207,5]
[322958361,1713547838416,-549.90202406,0.00034236,4]
[322958363,1713547838424,-150.92453773,0.00034315,2]
[322958364,1713547838433,-250.36569715,0.00034315,2]
[322958366,1713547838443,-376.08802365,0.00034335,2]
[322958368,1713547838452,-823.0,0.00034416,2]
[322958370,1713547838462,-440.4516996,0.00034555,10]
[322958371,1713547838471,-153.54682459,0.00034792,7]
[322958372,1713547838480,-376.08802365,0.000348,2]
[322958373,1713547838489,-274.06505324,0.00034829,7]
[322958374,1713547838499,-301.84907546,0.00034891,4]
[322958375,1713547838508,-248.53,0.00034899,2]
[322958376,1713547838517,-248.53,0.00034899,2]
[322958377,1713547838527,-248.53,0.00034899,2]
[322958378,1713547838536,-248.53,0.00034899,2]
[322958379,1713547838545,-5600.0,0.000349,9]
[322958380,1713547838554,-42042.56742649,0.000349,2]
[322958381,1713547838566,-3398.77950675,0.000349,2]
[322958399,1713547840340,-6244.90328528,0.000349,2]
[322958401,1713547840354,-1960.46914136,0.000349,2]
[322958407,1713547840399,-9954.85041454,0.000349,2]
[322958409,1713547840409,-44444.0,0.000349,3]
[322958411,1713547840420,-2205.13637677,0.000349,2]
[322958413,1713547840429,-13585.80862854,0.00035,5]
[322958415,1713547840438,-157.30392882,0.00035,30]
[322958416,1713547840448,-853.46514771,0.00035,2]
[322958418,1713547840458,-9526.1371755,0.00035,30]
[322958420,1713547840467,-513.03711942,0.00035,2]
[322958422,1713547840476,-11907.74027401,0.00035,30]
[322959188,1713547846498,-617.52598959,0.00034006,2]
[322968208,1713549041767,-154.90705577,0.00024061,2]
[322968209,1713549041777,-1489.22314453,0.00024061,2]
[322968210,1713549041795,-157.63770947,0.00024061,2]
[322968211,1713549041806,-283.08369263,0.00024062,2]
[322968212,1713549041816,-1674.52743334,0.00024063,2]
[322968213,1713549041825,-2585.8857477,0.00024063,2]
[322968214,1713549041836,-1876.66751895,0.00024064,2]
[322968215,1713549041847,-408.57291394,0.00024065,2]
[322968216,1713549041857,-300.0,0.00024065,2]
[322968217,1713549041866,-539.43970623,0.00024066,2]
[322968218,1713549041877,-977.06231715,0.00024066,2]
[322968219,1713549041887,-3530.73370012,0.00024067,2]
[322968220,1713549041897,-471.31782646,0.00024067,2]
[322968221,1713549041906,-154.90705577,0.00024067,2]
[322968222,1713549041916,-308.26347028,0.00024068,2]
[322968223,1713549041925,-500.0,0.0002407,2]
[322968224,1713549041935,-24900.0,0.00024071,2]
[322968225,1713549041944,-355.81076,0.0002497,2]
[322968226,1713549041954,-420.0,0.00026472,2]
[322968227,1713549041964,-244.70174012,0.000269,2]
[322968228,1713549041973,-154.93802479,0.00026998,2]
[322968229,1713549041983,-12950.0,0.00027,2]
[322968230,1713549041993,-8510.41889157,0.00027,2]
[322968231,1713549042002,-637.23512422,0.00027354,2]
[322968232,1713549042013,-168.114,0.00027397,2]
[322968233,1713549042023,-170.180115,0.00027397,2]
[322968234,1713549042039,-166.666666,0.00027397,2]
[322968235,1713549042048,-166.666666,0.00028466,2]
[322968236,1713549042058,-620.86175621,0.00028722,2]
[322968237,1713549042068,-587.0,0.00029119,2]
[322968238,1713549042077,-166.666666,0.00029534,2]
[322968239,1713549042086,-227.08445498,0.00029896,2]
[322968240,1713549042096,-1055.8,0.00029987,3]
[322968241,1713549042106,-879.83,0.00029987,3]
[322968242,1713549042116,-584.64239817,0.00029996,2]
[322968243,1713549042127,-500.0,0.00029996,2]
[322968244,1713549042136,-544.17885505,0.00029996,2]
[322968245,1713549042146,-500.0,0.00029996,2]
[322968246,1713549042155,-500.0,0.00029996,2]
[322968247,1713549042166,-258.34076484,0.00029996,2]
[322968248,1713549042176,-250.56102778,0.00029996,2]
[322968249,1713549042186,-63109.39507531,0.00029997,2]
[322968250,1713549042197,-7858.55367278,0.00029997,2]
[322968251,1713549042207,-208.48934142,0.00029998,2]
[322968252,1713549042218,-155.15687903,0.00029998,2]
[322968253,1713549042228,-245.79413479,0.00029998,2]
[322968254,1713549042237,-331.97035701,0.00029998,2]
[322968255,1713549042248,-211.7214804,0.00029998,2]
[322968256,1713549042258,-549.90202406,0.00029998,2]
[322968257,1713549042268,-28315.18243845,0.00029999,2]
[322968258,1713549042278,-5000.0,0.0003,2]
[322968259,1713549042293,-930.07258122,0.0003,4]
[322968260,1713549042304,-208.5632006,0.00030137,2]
[322968261,1713549042314,-197.008184,0.00030137,2]
[322968262,1713549042324,-620.04308781,0.00030158,2]
[322968263,1713549042333,-244.70174011,0.00030403,2]
[322968264,1713549042343,-166.666666,0.00030603,2]
[322968265,1713549042356,-1352.3101937,0.00030605,4]
[322968266,1713549042365,-227.08445494,0.00030925,2]
[322968267,1713549042375,-350.42643964,0.00031,4]
[322968268,1713549042385,-6239.58078714,0.00031,4]
[322968269,1713549042395,-227.08445494,0.00031954,2]
[322968270,1713549042405,-191.2801184,0.00032,4]
[322968271,1713549042414,-823.0,0.00032031,2]
[322968272,1713549042424,-150.89437394,0.00032497,2]
[322968273,1713549042434,-2051.82927133,0.000328,2]
[322968274,1713549042445,-227.08445494,0.00032982,2]
[322968275,1713549042454,-605.16066586,0.00033,4]
[322968276,1713549042465,-301.78874788,0.00033043,4]
[322968277,1713549042475,-170.180115,0.00033165,2]
[322968278,1713549042485,-153.54682459,0.00033214,7]
[322968279,1713549042494,-153.54682459,0.00033237,7]
[322968280,1713549042504,-246.65854791,0.00033267,7]
[322968281,1713549042515,-246.65854791,0.00033439,7]
[322968282,1713549042524,-603.57749575,0.00033598,7]
[322968283,1713549042541,-246.65854791,0.00033611,7]
[322968284,1713549042550,-246.65854791,0.00033667,7]
[322968285,1713549042560,-153.54682459,0.00033758,7]
[322968286,1713549042570,-150.53610885,0.00033813,7]
[322968287,1713549042581,-244.70174011,0.00033906,2]
[322968288,1713549042591,-155.45505525,0.0003398,4]
[322968289,1713549042600,-167.40572142,0.0003398,4]
[322968290,1713549042610,-154.95351395,0.0003398,4]
[322968291,1713549042620,-277.24658834,0.0003398,4]
[322968292,1713549042630,-155.35654607,0.0003398,4]
[322968293,1713549042640,-154.95351395,0.00033981,4]
[322968294,1713549042649,-155.48726397,0.00033981,4]
[322968295,1713549042659,-218.42945926,0.00033981,4]
[322968296,1713549042668,-473.53133438,0.00033981,4]
[322968297,1713549042677,-199.86771014,0.00033981,4]
[322968298,1713549042687,-465.76981599,0.00034,4]
[322968299,1713549042697,-19226.29060533,0.00034005,4]
[322968300,1713549042707,-4848.21770199,0.00034006,5]
[322968301,1713549042717,-1587.7606295,0.00034006,4]
[322968302,1713549042727,-10107.37936223,0.00034006,7]
[322968303,1713549042738,-9150.48514382,0.00034006,2]
[322968304,1713549042747,-227.08445494,0.00034011,2]
[322968305,1713549042851,-2018.83,0.00034068,2]
[322968306,1713549042862,-2018.83,0.00034068,2]
[322968307,1713549042872,-2018.83,0.00034068,2]
[322968308,1713549042882,-2018.83,0.00034068,2]
[322968310,1713549042892,-2018.83,0.00034068,2]
[322968312,1713549042901,-2018.83,0.00034068,2]
[322968314,1713549042910,-2018.83,0.00034068,2]
[322968315,1713549042919,-2018.83,0.00034068,2]
[322968316,1713549042928,-416.25228786,0.00034068,2]
[322968318,1713549043025,-1602.57771214,0.00034068,2]
[322968319,1713549043041,-2018.83,0.00034068,2]
[322968321,1713549043051,-169072.51274484,0.00034069,2]
[322968322,1713549043061,-44444.0,0.00034111,3]
[322968324,1713549043071,-2384.59786274,0.00034112,2]
[322968326,1713549043080,-6792.90431427,0.00034212,5]
[322968328,1713549043089,-154.021014,0.00034212,2]
[322968331,1713549043099,-151.0,0.00034212,2]
[322968334,1713549043108,-151.0,0.00034212,2]
[322968337,1713549043117,-832.280203,0.00034212,2]
[322968340,1713549043127,-832.280203,0.00034212,2]
[322968342,1713549043137,-1353.636144,0.00034212,2]
[322968344,1713549043146,-151.0,0.00034212,2]
[322968345,1713549043155,-1353.636144,0.00034212,2]
[322968347,1713549043164,-3182.789676,0.00034212,2]
[322968350,1713549043174,-3182.789676,0.00034212,2]
[322968352,1713549043183,-51472.38947787,0.00034212,14]
[322968358,1713549043646,-4405.99951717,0.00024062,2]
[322968359,1713549043655,-43340.69071337,0.00034212,14]
[322970361,1713549235127,236.18634572,0.00021,2]
[322970362,1713549235331,24763.81365428,0.0002,2]
[322970363,1713549235362,5000.0,0.0002,2]
[322970364,1713549235388,9133.07480352,0.0002,2]
[322970366,1713549281538,15070.74268474,0.00021,2]
[322970367,1713549282356,1083.29017737,0.00021,2]
[322970368,1713549282388,196.94506999,0.00021,2]
[322970369,1713549284665,1682.45845719,0.0002,2]
[322970381,1713549886907,200.0,0.00024658,15]
[322970383,1713549976764,1367.88618089,0.000189,2]
[322970490,1713550238808,-623.05077972,0.00022903,2]
[322970669,1713550240812,-673.02624515,0.00022902,2]
[322970671,1713550240822,-2091.0688141,0.00022903,2]
[322970673,1713550240836,-1691.87992335,0.00022903,2]
[322970675,1713550240845,-883.09222158,0.00022903,2]
[322970677,1713550240854,-784.09852565,0.00022903,2]
[322970680,1713550240863,-1576.32789394,0.00022904,2]
[322970681,1713550240872,-154.8915759,0.00022905,2]
[322970684,1713550240882,-564.09332327,0.00022905,2]
[322970686,1713550240891,-193.45780411,0.00022905,2]
[322970688,1713550240900,-173.10065806,0.00022905,2]
[322970690,1713550240909,-1154.74523533,0.00022906,2]
[322971321,1713550246830,-1201.28235502,0.00022902,2]
[322971322,1713550246840,-308.26347028,0.00022902,2]
[322971323,1713550246851,-1310.7097611,0.00022905,2]
[322971324,1713550246861,-2375.98846479,0.00022906,2]
[322971325,1713550246871,-241.3290765,0.00022906,2]
[322971326,1713550246883,-1549.5887261,0.00022907,2]
[322971327,1713550246893,-1674.52743334,0.00022907,2]
[322971328,1713550246904,-408.57291394,0.00022908,2]
[322971329,1713550246914,-300.0,0.00022908,2]
[322971331,1713550246925,-1489.22314453,0.00022909,2]
[322971333,1713550246934,-177.90538,0.00022966,2]
[322971334,1713550246943,-24900.0,0.00023207,2]
[322971335,1713550246953,-1367.88618089,0.000239,2]
[322971336,1713550246967,-513.35127972,0.00023939,2]
[322971337,1713550246976,-1475.45659712,0.0002419,2]
[322971338,1713550246986,-356.94255538,0.00024191,2]
[322971339,1713550246996,-7527.00133377,0.00024191,2]
[322971340,1713550247007,-1014.53222684,0.00025,2]
[322971341,1713550247017,-420.0,0.00025199,2]
[322971343,1713550247027,-166.055162,0.00027397,2]
[322971345,1713550247037,-160.396402,0.00027397,2]
[322971346,1713550247047,-166.6666667,0.00027397,2]
[322971349,1713550247059,-159.315737,0.00027397,2]
[322971351,1713550247069,-974.67151298,0.000274,2]
[322971352,1713550247079,-733.19,0.0002749,3]
[322971354,1713550247089,-610.99,0.0002749,3]
[322971356,1713550247101,-509.16,0.0002749,3]
[322971358,1713550247110,-1218.02095986,0.00027499,2]
[322971360,1713550247119,-527.50222946,0.00027499,2]
[322971362,1713550247129,-233.21950931,0.00027499,2]
[322971365,1713550247140,-38201.71899816,0.000275,2]
[322971367,1713550247150,-587.0,0.00027719,2]
[322971369,1713550247159,-3341.530843,0.00027973,2]
[322971370,1713550247169,-63051.25888736,0.000299,2]
[322974184,1713550390290,10000.0,0.00028267,120]
[322974185,1713550415337,200.0,0.0003,29]
[322974188,1713550657143,-3530.73370012,0.00027778,2]
[322974189,1713550657168,-883.09222158,0.00027779,2]
[322974190,1713550657191,-5797.00010816,0.0002778,2]
[322974191,1713550657214,-4405.99951717,0.0002778,2]
[322974192,1713550657238,-673.02624515,0.00027781,2]
[322974193,1713550657260,-193.45780411,0.00027781,2]
[322974194,1713550657284,-300.0,0.00027781,2]
[322974195,1713550657310,-455.96206029,0.000278,2]
[322974196,1713550657477,1310.7097611,0.00027778,2]
[322974198,1713550839871,159.160995,0.00027397,2]
[322974200,1713550881487,303.97470686,0.000278,2]
[322974201,1713551050335,620.44847673,0.0002277,7]
[322974202,1713551164196,166.666666,0.00027514,2]
[322974203,1713551182693,202.64980458,0.00026167,2]
[322974204,1713551413584,168.114,0.00027397,2]
[322974335,1713551437893,-177.90538,0.00027844,2]
[322974336,1713551437902,-2618.82957305,0.00027892,2]
[322974350,1713551439991,-911.90412707,0.00027892,2]
[322974351,1713551440001,-1310.7097611,0.00027893,2]
[322974352,1713551440010,-300.0,0.00027903,2]
[322974353,1713551440020,-19177.05272704,0.00027904,2]
[322974616,1713551483924,150.0,0.00025804,2]
[322974644,1713551785486,150.0,0.00025804,2]
[322974655,1713551913768,198.0,0.000305,29]